bitfinex/quotes_ETHUSD_20230113
["timestamp","ask_amount","ask_price","bid_price","bid_amount"]
[1673576971911,25.04212272,1406.1,1405.9,1e-08]
[1673576972402,25.04212272,1406.1,1405.9,1.05901521]
[1673576972623,25.04212272,1406.1,1405.9,1e-08]
[1673576974291,2.0,1406.0,1405.9,1e-08]
[1673576974471,9.11237,1406.0,1405.9,1e-08]
[1673576974788,9.21137,1406.0,1405.9,1e-08]
[1673576979223,19.93007272,1406.0,1405.9,1e-08]
[1673576979408,27.27244272,1406.0,1405.9,1e-08]
[1673576983594,30.10129539,1406.0,1405.9,1e-08]
[1673576984245,34.34475559,1406.0,1405.9,1e-08]
[1673576984450,32.7482389,1406.0,1405.9,1e-08]
[1673576986366,1.08199999,1405.8,1405.7,1.22387451]
[1673576986579,19.14509271,1405.8,1405.7,1.22387451]
[1673576986953,19.24409271,1405.8,1405.7,1.22387451]
[1673576987619,26.35747271,1405.8,1405.7,1.22387451]
[1673576988279,26.35747271,1405.8,1405.7,0.16485931]
[1673576988586,26.35747271,1405.8,1405.7,1.22387451]
[1673576989415,26.35747271,1405.8,1405.7,0.16485931]
[1673576992799,12.13071271,1405.8,1405.7,0.16485931]
[1673576993001,19.24409271,1405.8,1405.7,0.16485931]
[1673576993178,26.35747271,1405.8,1405.7,0.16485931]
[1673576993524,27.06825956,1405.8,1405.7,0.16485931]
[1673576994840,26.35747271,1405.8,1405.7,0.16485931]
[1673576995056,27.06825956,1405.8,1405.7,0.16485931]
[1673576995375,29.56825956,1405.8,1405.7,0.16485931]
[1673576997067,28.85747271,1405.8,1405.7,0.16485931]
[1673577000635,19.24409271,1405.8,1405.7,0.16485931]
[1673577000843,3.93733271,1405.8,1405.7,0.16485931]
[1673577001048,3.83833271,1405.8,1405.7,0.16485931]
[1673577003257,3.60833271,1405.8,1405.7,0.16485931]
[1673577003506,0.00199999,1405.8,1405.7,15.59563931]
[1673577003714,0.00199999,1405.8,1405.7,23.76854451]
[1673577009458,14.3126,1406.0,1405.8,0.00034964]
[1673577009677,3.60633272,1405.9,1405.8,7.11359964]
[1673577010050,3.60633272,1405.9,1405.8,0.00034964]
[1673577010434,6.10633272,1405.9,1405.8,0.00034964]
[1673577010778,6.20533272,1405.9,1405.8,0.00034964]
[1673577020331,3.70533272,1405.9,1405.8,8.17274484]
[1673577020540,3.60633272,1405.9,1405.8,8.17274484]
[1673577021841,3.60633272,1405.9,1405.8,1.05936484]
[1673577023094,6.10633272,1405.9,1405.8,0.00034964]
[1673577023242,6.20533272,1405.9,1405.8,0.00034964]
[1673577023696,6.20533272,1405.9,1405.7,24.11849229]
[1673577024094,3.70533272,1405.9,1405.7,24.11849229]
[1673577024317,3.60633272,1405.9,1405.7,24.11849229]
[1673577025596,3.60633272,1405.9,1405.8,1.0590152]
[1673577025857,3.60633272,1405.9,1405.8,8.1723952]
[1673577027852,0.099,1406.0,1405.8,26.61754684]
[1673577028063,8.7752,1406.1,1405.8,26.61754684]
[1673577028218,12.38153272,1406.1,1405.8,26.61754684]
[1673577030056,3.60633272,1406.0,1405.8,1.0590152]
[1673577030226,3.60633272,1405.9,1405.8,1.0590152]
[1673577030432,0.099,1406.0,1405.8,8.1723952]
[1673577030692,3.60633272,1406.0,1405.8,15.2857752]
[1673577031961,3.60633272,1406.0,1405.8,23.98705824]
[1673577032317,3.60633272,1406.0,1405.8,27.32885484]
[1673577032485,3.60633272,1406.0,1405.9,1.02337001]
[1673577032642,3.60633272,1406.0,1405.9,8.13625001]
[1673577033579,3.60633272,1406.0,1405.9,15.24913001]
[1673577034879,3.60633272,1406.0,1405.9,16.30814521]
[1673577035323,20.06385957,1406.0,1405.9,1.02337001]
[1673577035613,2.5,1405.9,1405.7,0.19680405]
[1673577035825,3.83633272,1405.8,1405.7,0.13080405]
[1673577036056,4.08633272,1405.8,1405.7,0.13080405]
[1673577037159,11.19971272,1405.8,1405.7,0.13080405]
[1673577037510,4.18533272,1405.8,1405.7,0.13080405]
[1673577037686,4.08633272,1405.8,1405.7,0.13080405]
[1673577041198,4.08633272,1405.8,1405.7,1.18981925]
[1673577041355,3.83633272,1405.8,1405.7,8.30370925]
[1673577042567,3.83633272,1405.8,1405.7,8.30012726]
[1673577042739,3.83633272,1405.8,1405.7,1.18623726]
[1673577043347,3.83633272,1405.8,1405.7,8.30012726]
[1673577044826,11.4484,1405.9,1405.7,8.30012726]
[1673577045041,15.05473272,1405.9,1405.7,24.1158103]
[1673577045491,15.05473272,1405.9,1405.8,1.0590152]
[1673577045711,15.05473272,1405.9,1405.8,7.11338]
[1673577045933,3.70533272,1405.9,1405.8,7.11338]
[1673577046118,3.60633272,1405.9,1405.8,7.11338]
[1673577046546,3.60633272,1405.9,1405.8,8.1723952]
[1673577046721,3.83633272,1405.9,1405.8,8.1723952]
[1673577047291,3.83633272,1405.9,1405.8,7.11338]
[1673577048248,3.83633272,1405.9,1405.8,15.2857752]
[1673577048475,3.83633272,1405.9,1405.8,22.3991552]
[1673577049135,0.23,1405.9,1405.8,22.3991552]
[1673577049352,20.5542,1406.1,1405.8,27.02013544]
[1673577049673,24.16053272,1406.1,1406.0,14.22474]
[1673577049918,3.70533272,1406.1,1406.0,14.22474]
[1673577050138,3.60633272,1406.1,1406.0,14.22474]
[1673577050824,3.83633272,1406.1,1406.0,14.22474]
[1673577052198,3.60633272,1406.1,1406.0,14.22474]
[1673577052542,3.60633272,1406.1,1406.0,24.6475147]
[1673577053914,3.60633272,1406.1,1406.0,23.58380679]
[1673577054858,3.60633272,1406.1,1406.0,24.6475147]
[1673577055277,3.60633272,1406.1,1406.0,23.58380679]
[1673577055440,3.60633272,1406.1,1406.0,24.6475147]
[1673577056139,3.60633272,1406.1,1406.0,23.58380679]
[1673577058277,3.60633272,1406.1,1406.0,21.33711]
[1673577059675,0.099,1406.2,1406.0,30.46565672]
[1673577059889,3.60633272,1406.4,1406.1,1.59264261]
[1673577060115,3.60633272,1406.3,1406.2,7.11131]
[1673577060293,3.60633272,1406.3,1406.1,15.35128299]
[1673577060496,3.60633272,1406.2,1406.1,14.22351]
[1673577060757,3.60633272,1406.2,1406.1,15.28528299]
[1673577061075,3.60633272,1406.2,1406.1,21.33537]
[1673577063392,3.60633272,1406.2,1406.1,23.86214856]
[1673577063695,3.60417197,1406.2,1406.1,23.86214856]
[1673577066007,3.60417197,1406.2,1406.1,25.07414856]
[1673577068699,0.099,1406.3,1406.1,25.07414856]
[1673577068907,0.0663284,1406.6,1406.2,3.47777299]
[1673577069123,0.0663284,1406.6,1406.4,1.208]
[1673577069377,0.0663284,1406.6,1406.5,22.54152]
[1673577071146,0.0663284,1406.6,1406.5,7.10984]
[1673577073267,0.0663284,1406.6,1406.5,14.21968]
[1673577073438,0.0663284,1406.6,1406.5,21.32952]
[1673577077789,0.0663284,1406.6,1406.5,23.469072]
[1673577079193,0.0663284,1406.6,1406.5,24.677072]
[1673577080700,0.0663284,1406.6,1406.5,27.177072]
[1673577083131,0.0663284,1406.6,1406.5,26.677072]
[1673577083559,0.0663284,1406.6,1406.5,27.177072]
[1673577083734,0.0663284,1406.6,1406.5,30.177072]
[1673577084873,0.0663284,1406.6,1406.5,30.127072]
[1673577087680,0.0663284,1406.6,1406.5,27.627072]
[1673577088643,0.0663284,1406.6,1406.5,30.127072]
[1673577091012,0.0663284,1406.6,1406.5,27.627072]
[1673577095554,0.0663284,1406.6,1406.5,26.419072]
[1673577095877,0.0663284,1406.6,1406.5,24.27952]
[1673577102302,0.0663284,1406.6,1406.5,24.28152]
[1673577102516,0.0663284,1406.6,1406.5,24.27952]
[1673577102904,0.0663284,1406.6,1406.5,14.16968]
[1673577102905,1.1463284,1406.6,1406.5,14.16968]
[1673577103147,1.26759408,1406.6,1406.5,14.16968]
[1673577104626,0.18759408,1406.6,1406.5,14.16968]
[1673577104782,0.0663284,1406.6,1406.5,14.16968]
[1673577105962,3.67266112,1406.6,1406.5,14.16968]
[1673577108288,3.67266112,1406.6,1406.4,14.28639]
[1673577108503,3.67266112,1406.6,1406.4,7.11015]
[1673577108693,0.36726611,1406.5,1406.4,7.11015]
[1673577109553,3.97359883,1406.5,1406.3,15.34910299]
[1673577109733,3.97359883,1406.5,1406.4,7.11035]
[1673577113981,3.97359883,1406.5,1406.4,14.2207]
[1673577114300,3.60633272,1406.5,1406.4,14.2207]
[1673577116183,0.1653284,1406.6,1406.5,1.09546831]
[1673577116394,3.67266112,1406.6,1406.5,8.20530831]
[1673577119984,3.67266112,1406.6,1406.5,15.31514831]
[1673577120282,0.0663284,1406.6,1406.5,22.42498831]
[1673577121425,0.06390285,1406.6,1406.5,25.49129144]
[1673577127355,0.06390285,1406.6,1406.5,30.78793405]
[1673577127662,0.06390285,1406.6,1406.5,33.78793405]
[1673577128400,0.06390285,1406.6,1406.5,35.90857773]
[1673577130448,0.06390285,1406.6,1406.5,33.78793405]
[1673577130666,0.06390285,1406.6,1406.5,35.90857773]
[1673577131340,0.06390285,1406.6,1406.5,38.12839268]
[1673577131553,0.06390285,1406.6,1406.5,39.33939268]
[1673577131708,0.06390285,1406.6,1406.5,41.97200899]
[1673577132128,0.06390285,1406.6,1406.5,38.15955143]
[1673577132910,0.06390285,1406.6,1406.5,36.03890775]
[1673577133444,0.04992866,1406.6,1406.5,36.03890775]
[1673577135011,0.04992866,1406.6,1406.5,34.82790775]
[1673577135201,0.04992866,1406.6,1406.5,36.94665462]
[1673577135420,0.04992866,1406.6,1406.5,34.82790775]
[1673577135829,0.04992866,1406.6,1406.5,36.94664162]
[1673577136238,0.04992866,1406.6,1406.5,34.82790775]
[1673577137334,0.04992866,1406.6,1406.5,36.94576586]
[1673577138374,0.04992866,1406.6,1406.5,34.44576586]
[1673577139076,0.04992866,1406.6,1406.5,31.81314955]
[1673577140583,0.04992866,1406.6,1406.5,34.44576586]
[1673577140758,0.04992866,1406.6,1406.5,31.81314955]
[1673577141650,0.04992866,1406.6,1406.5,30.60568124]
[1673577144049,0.0390226,1406.6,1406.5,30.60568124]
[1673577144242,0.0390226,1406.6,1406.5,33.23829755]
[1673577144474,0.0390226,1406.6,1406.5,30.60568124]
[1673577144856,0.0390226,1406.6,1406.5,30.0751158]
[1673577145908,0.0390226,1406.6,1406.5,32.19297391]
[1673577150339,0.0390226,1406.6,1406.5,33.02234107]
[1673577154109,0.0390226,1406.6,1406.5,31.4350484]
[1673577157064,0.0390226,1406.6,1406.5,34.06766471]
[1673577159365,0.0390226,1406.6,1406.5,34.06714519]
[1673577159575,0.0390226,1406.6,1406.5,31.43452888]
[1673577159805,0.0390226,1406.6,1406.5,34.06714519]
[1673577160525,7.89100897,1406.9,1406.5,32.97514519]
[1673577160765,7.89100897,1406.9,1406.8,7.10833]
[1673577160977,0.099,1406.9,1406.8,7.10833]
[1673577161195,11.29916493,1407.0,1406.8,7.10833]
[1673577161196,11.39816493,1407.0,1406.8,7.10833]
[1673577163094,11.39816493,1407.0,1406.9,1.05876085]
[1673577163095,0.18186493,1407.0,1406.9,1.05876085]
[1673577163407,0.18186493,1407.0,1406.9,24.77941006]
[1673577163408,0.08286493,1407.0,1406.9,24.77941006]
[1673577163561,0.08286493,1407.0,1406.9,25.30879049]
[1673577163767,0.08286493,1407.0,1406.9,29.92612908]
[1673577164028,0.08286493,1407.0,1406.9,32.92612908]
[1673577165202,0.08286493,1407.0,1406.9,30.42612908]
[1673577168359,0.08286493,1407.0,1406.9,28.30879049]
[1673577168983,0.08286493,1407.0,1406.9,30.42612908]
[1673577171162,0.08286493,1407.0,1406.9,28.30879049]
[1673577172736,0.08286493,1407.0,1406.9,30.42612908]
[1673577173203,0.08286493,1407.0,1406.9,28.30879049]
[1673577173502,0.08286493,1407.0,1406.9,28.30546852]
[1673577173721,0.08286493,1407.0,1406.9,29.51746852]
[1673577174724,0.08286493,1407.0,1406.9,31.63480711]
[1673577177919,0.08286493,1407.0,1406.9,29.51746852]
[1673577178285,0.08286493,1407.0,1406.9,29.51946852]
[1673577178495,0.08286493,1407.0,1406.9,29.51746852]
[1673577179293,0.03286493,1407.0,1406.9,29.51746852]
[1673577179597,0.03286493,1407.0,1406.9,31.63480711]
[1673577183135,0.03286493,1407.0,1406.9,29.51746852]
[1673577188324,0.03286493,1407.0,1406.9,28.30546852]
[1673577189133,0.03286493,1407.0,1406.9,29.36232806]
[1673577189559,0.03286493,1407.0,1406.9,28.30546852]
[1673577189771,0.03286493,1407.0,1406.9,29.36230817]
[1673577190105,0.03286493,1407.0,1406.9,28.30546852]
[1673577190548,0.03286493,1407.0,1406.9,29.36232304]
[1673577191259,0.03286493,1407.0,1406.9,28.30546852]
[1673577192820,0.03286493,1407.0,1406.9,29.36252581]
[1673577193051,0.03286493,1407.0,1406.9,18.27281892]
[1673577193052,1.11286493,1407.0,1406.9,18.27281892]
[1673577193270,0.03286493,1407.0,1406.9,22.38063892]
[1673577194313,0.03286493,1407.0,1406.9,21.32346]
[1673577194537,0.03286493,1407.0,1406.9,24.32346]
[1673577194857,0.03286493,1407.0,1406.9,17.21564]
[1673577195164,0.03286493,1407.0,1406.9,18.27281892]
[1673577195334,0.03286493,1407.0,1406.9,17.21564]
[1673577196185,0.03286493,1407.0,1406.9,15.27281892]
[1673577196186,1.11286493,1407.0,1406.9,15.27281892]
[1673577196382,6.33848414,1407.0,1406.8,8.23113892]
[1673577196592,6.43748414,1407.0,1406.8,1.05717892]
[1673577197377,6.43748414,1407.0,1406.8,8.16548892]
[1673577201750,1.52,1406.9,1406.8,8.16548892]
[1673577204336,1.52,1406.9,1406.8,15.27381892]
[1673577205165,1.52,1406.9,1406.8,14.21664]
[1673577205977,1.52,1406.9,1406.8,15.27381892]
[1673577206396,1.51695404,1406.9,1406.8,15.27381892]
[1673577206641,3.73819765,1407.0,1406.8,23.9702902]
[1673577206853,5.15919765,1407.0,1406.8,23.9702902]
[1673577207062,5.25819765,1407.0,1406.8,23.9702902]
[1673577208485,5.25819765,1407.0,1406.8,22.38214892]
[1673577209376,5.25819765,1407.0,1406.8,23.9702902]
[1673577209586,5.25819765,1407.0,1406.8,22.38214892]
[1673577212179,1.65186493,1407.0,1406.8,23.9702902]
[1673577212377,1.55286493,1407.0,1406.8,27.29650508]
[1673577212591,1.55286493,1407.0,1406.9,1.05717892]
[1673577212820,1.55286493,1407.0,1406.9,22.38063892]
[1673577213638,0.03286493,1407.0,1406.9,22.38063892]
[1673577213848,0.03286493,1407.0,1406.9,25.82756943]
[1673577216284,0.03286493,1407.0,1406.9,11.61192943]
[1673577216493,0.03286493,1407.0,1406.9,22.38063892]
[1673577218418,0.03286493,1407.0,1406.9,21.32346]
[1673577219343,0.03286493,1407.0,1406.9,22.03850572]
[1673577219950,0.03286493,1407.0,1406.9,23.09568464]
[1673577226701,0.03041306,1407.0,1406.9,25.59568464]
[1673577227466,0.03041306,1407.0,1406.9,28.78240109]
[1673577227894,0.03041306,1407.0,1406.9,30.37054237]
[1673577228085,0.03041306,1407.0,1406.9,27.87054237]
[1673577230257,0.03041306,1407.0,1406.9,24.68382592]
[1673577230464,0.03041306,1407.0,1406.9,8.88004464]
[1673577230734,0.03041306,1407.0,1406.9,10.46818592]
[1673577230897,0.03041306,1407.0,1406.9,8.88004464]
[1673577231113,0.03041306,1407.0,1406.9,10.46818592]
[1673577234616,0.03041306,1407.0,1406.9,1.77222464]
[1673577237444,4.71674578,1407.0,1406.9,1.77222464]
[1673577237656,5.29498655,1407.0,1406.9,1.77222464]
[1673577237836,5.39398655,1407.0,1406.9,1.77222464]
[1673577240076,4.31398655,1407.0,1406.9,1.77222464]
[1673577240295,3.63674578,1407.0,1406.9,1.77222464]
[1673577255014,3.63360998,1407.0,1406.9,1.77222464]
[1673577255370,3.63360998,1407.0,1406.9,3.36036592]
[1673577255587,3.63360998,1407.0,1406.9,1.77222464]
[1673577256648,3.63360998,1407.0,1406.9,3.36036592]
[1673577270659,3.63360998,1407.0,1406.9,1.77222464]
[1673577271270,3.63360998,1407.0,1406.9,3.36036592]
[1673577271482,3.63360998,1407.0,1406.9,1.77222464]
[1673577271715,3.63360998,1407.0,1406.9,3.36036592]
[1673577274497,3.63660998,1407.0,1406.9,3.36036592]
[1673577274707,3.63360998,1407.0,1406.9,3.36036592]
[1673577276867,3.63153726,1407.0,1406.9,3.36036592]
[1673577284686,3.63453726,1407.0,1406.9,3.36036592]
[1673577285025,3.63153726,1407.0,1406.9,3.36036592]
[1673577293922,3.63153726,1407.0,1406.9,1.77222464]
[1673577294877,3.63153726,1407.0,1406.9,1.76915402]
[1673577294878,6.13153726,1407.0,1406.9,1.76915402]
[1673577295042,3.73053726,1407.0,1406.9,1.76915402]
[1673577295402,3.63153726,1407.0,1406.9,1.76915402]
[1673577297087,4.6971992,1407.0,1406.9,0.7119751]
[1673577297253,7.1971992,1407.0,1406.9,0.7119751]
[1673577297463,7.2961992,1407.0,1406.9,0.7119751]
[1673577297674,4.7961992,1407.0,1406.9,0.7119751]
[1673577297887,3.63153726,1407.0,1406.9,1.76915402]
[1673577298566,3.63153726,1407.0,1406.9,0.7119751]
[1673577299085,3.63153726,1407.0,1406.9,1.76915402]
[1673577299886,3.63153726,1407.0,1406.9,0.7119751]
[1673577300094,3.63153726,1407.0,1406.9,1.76915402]
[1673577300311,3.63153726,1407.0,1406.9,0.7119751]
[1673577302548,3.63153726,1407.0,1406.9,1.76915402]
[1673577302729,3.63153726,1407.0,1406.9,0.7119751]
[1673577302937,3.63153726,1407.0,1406.9,1.76915402]
[1673577303143,3.58153726,1407.0,1406.9,1.76915402]
[1673577304448,6.08153726,1407.0,1406.9,1.76915402]
[1673577304620,31.85143896,1407.0,1406.9,0.7119751]
[1673577304821,31.85143896,1407.0,1406.9,1e-08]
[1673577304822,35.18996788,1407.0,1406.9,1e-08]
[1673577305044,36.76894149,1407.0,1406.9,1e-08]
[1673577305235,45.26660265,1407.0,1406.9,1e-08]
[1673577305604,46.13506827,1407.0,1406.9,1e-08]
[1673577305767,58.69515512,1407.0,1406.9,1e-08]
[1673577305974,60.82415831,1407.0,1406.9,1e-08]
[1673577306721,58.16161246,1407.0,1406.9,1e-08]
[1673577307789,59.75748443,1407.0,1406.9,1e-08]
[1673577309891,57.62848124,1407.0,1406.9,1e-08]
[1673577311148,59.75748443,1407.0,1406.9,1e-08]
[1673577312494,57.62848124,1407.0,1406.9,1e-08]
[1673577312709,59.75748443,1407.0,1406.9,1e-08]
[1673577312868,57.62848124,1407.0,1406.9,1e-08]
[1673577313079,59.75748443,1407.0,1406.9,1e-08]
[1673577313330,57.62848124,1407.0,1406.9,1e-08]
[1673577315933,58.69119831,1407.0,1406.9,1e-08]
[1673577320649,57.09532634,1407.0,1406.9,1e-08]
[1673577321297,0.00199999,1406.8,1406.3,0.066]
[1673577321497,0.00199999,1406.8,1406.1,11.10883162]
[1673577321498,4.66909754,1406.7,1406.1,11.10883162]
[1673577321729,28.72494009,1406.6,1406.1,13.09210097]
[1673577322046,16.72123,1406.4,1406.1,11.50395969]
[1673577322221,3.60633272,1406.3,1406.1,9.45469034]
[1673577322676,10.71747272,1406.3,1406.1,9.45469034]
[1673577322843,10.81647272,1406.3,1406.1,1.15529034]
[1673577325409,17.92761272,1406.3,1406.1,0.09811142]
[1673577325777,10.94769272,1406.2,1406.1,0.09811142]
[1673577325992,18.15805272,1406.2,1406.1,0.09811142]
[1673577327146,25.26941272,1406.2,1406.1,0.09811142]
[1673577327603,27.76941272,1406.2,1406.1,0.09811142]
[1673577329982,35.29729719,1406.2,1406.1,0.09811142]
[1673577330438,27.76941272,1406.2,1406.0,0.0945933]
[1673577330649,13.21819272,1406.1,1406.0,0.0945933]
[1673577330856,10.81719272,1406.1,1406.0,0.0945933]
[1673577331401,0.099,1406.1,1406.0,1.1865933]
[1673577331608,18.24924,1406.3,1406.0,2.16783163]
[1673577331609,15.81124,1406.3,1406.0,2.16783163]
[1673577331768,3.60633272,1406.2,1406.0,2.16783163]
[1673577331978,3.60633272,1406.2,1406.0,1.07583163]
[1673577332829,3.60633272,1406.2,1406.0,2.59583163]
[1673577333764,3.60633272,1406.2,1406.0,5.09583163]
[1673577333979,3.60633272,1406.2,1406.1,0.50958316]
[1673577336843,0.099,1406.3,1406.1,0.50958316]
[1673577337024,3.60633272,1406.3,1406.1,0.50958316]
[1673577337241,3.60633272,1406.3,1406.1,7.62140316]
[1673577338073,3.60633272,1406.3,1406.1,0.50958316]
[1673577339330,3.60933272,1406.3,1406.1,0.50958316]
[1673577339546,3.60633272,1406.3,1406.1,0.50958316]
[1673577340434,11.658,1406.4,1406.1,14.73323316]
[1673577340605,22.37469272,1406.4,1406.2,1.47332332]
[1673577340797,22.37469272,1406.4,1406.1,21.84509316]
[1673577340798,22.37469272,1406.4,1406.1,21.91109316]
[1673577341028,22.37469272,1406.4,1406.1,21.84509316]
[1673577341234,22.37469272,1406.4,1406.1,14.73323316]
[1673577341684,22.37469272,1406.4,1406.1,0.50958316]
[1673577341868,22.37469272,1406.4,1406.0,25.00567055]
[1673577342119,22.37469272,1406.4,1406.0,24.98967055]
[1673577342716,3.60633272,1406.3,1406.0,24.98967055]
[1673577342947,10.71769272,1406.2,1406.0,1.15177222]
[1673577343116,17.92805272,1406.2,1406.0,1.15177222]
[1673577343326,25.03941272,1406.2,1406.0,0.0945933]
[1673577343748,27.03941272,1406.2,1406.0,0.0945933]
[1673577343958,25.03941272,1406.2,1406.0,0.0945933]
[1673577344169,3.60633272,1406.1,1406.0,0.0945933]
[1673577346168,10.71819272,1406.1,1406.0,0.0945933]
[1673577346379,10.81719272,1406.1,1406.0,0.0945933]
[1673577348418,18.15905272,1406.1,1406.0,0.0945933]
[1673577352800,18.1555265,1406.1,1406.0,0.0945933]
[1673577354375,3.9318065,1406.1,1406.0,0.0945933]
[1673577354593,3.6028065,1406.1,1406.0,1.15177222]
[1673577355584,7.21036,1406.2,1406.0,2.66477222]
[1673577355901,10.81669272,1406.2,1406.0,5.63946885]
[1673577356276,10.81669272,1406.2,1406.1,1.05717892]
[1673577357276,10.81669272,1406.2,1406.0,5.70546885]
[1673577357430,10.81669272,1406.2,1406.1,1.05717892]
[1673577358206,3.70533272,1406.2,1406.1,1.05717892]
[1673577358412,3.60633272,1406.2,1406.1,2.6453202]
[1673577359677,3.60633272,1406.2,1406.1,1.58814128]
[1673577361048,3.60633272,1406.2,1406.1,2.6482662]
[1673577362202,3.60633272,1406.2,1406.1,1.58814128]
[1673577364710,3.60633272,1406.2,1406.1,3.70547987]
[1673577364885,0.099,1406.3,1406.1,3.62974454]
[1673577365100,3.60633272,1406.3,1406.2,2.6516328]
[1673577365779,3.60633272,1406.3,1406.2,1.59097968]
[1673577366842,27.35781,1406.4,1406.2,1.59097968]
[1673577366843,0.099,1406.4,1406.2,6.24019044]
[1673577366988,30.479,1406.6,1406.3,4.63044409]
[1673577367200,0.099,1406.6,1406.4,1.06026346]
[1673577367406,21.49346482,1406.7,1406.5,1.19802635]
[1673577367407,21.59246482,1406.7,1406.5,1.19802635]
[1673577367722,15.01703272,1406.7,1406.5,2.25828981]
[1673577369723,15.01703272,1406.7,1406.5,1.19802635]
[1673577370507,15.01703272,1406.7,1406.5,0.10602635]
[1673577371753,15.01703272,1406.7,1406.5,1.61902635]
[1673577372138,15.01703272,1406.7,1406.5,2.67928981]
[1673577372342,15.01703272,1406.7,1406.5,1.61902635]
[1673577377122,15.01339903,1406.7,1406.5,1.61902635]
[1673577377701,15.01339903,1406.7,1406.5,0.10602635]
[1673577379957,15.01339903,1406.7,1406.5,7.21586635]
[1673577398766,15.01339903,1406.7,1406.5,8.27612981]
[1673577399564,15.01339903,1406.7,1406.5,7.21586635]
[1673577399784,15.01339903,1406.7,1406.5,8.27612981]
[1673577402875,0.09621479,1406.7,1406.6,0.82761298]
[1673577403090,39.499,1406.8,1406.6,16.10655644]
[1673577403091,9.21521479,1406.8,1406.6,16.10655644]
[1673577404673,9.21521479,1406.8,1406.7,1.06026346]
[1673577404983,29.86453985,1406.8,1406.6,0.066]
[1673577405144,3.60633272,1406.7,1406.5,1.06026346]
[1673577405352,13.21534272,1406.7,1406.5,1.06026346]
[1673577405562,13.31155751,1406.7,1406.5,1.06026346]
[1673577406452,13.31155751,1406.7,1406.5,2.65070755]
[1673577407079,6.10633272,1406.6,1406.5,1.06026346]
[1673577407403,20.42122751,1406.6,1406.5,1.06026346]
[1673577407572,20.42122751,1406.6,1406.4,2.65070755]
[1673577407768,2.0,1406.5,1406.4,2.65070755]
[1673577407988,2.0,1406.5,1406.4,2.65101644]
[1673577409024,20.42122751,1406.6,1406.4,2.65101644]
[1673577409236,13.31188751,1406.6,1406.4,2.65101644]
[1673577411770,6.20254751,1406.6,1406.4,2.65101644]
[1673577414280,6.20254751,1406.6,1406.4,1.06057235]
[1673577415061,3.70254751,1406.6,1406.4,2.65101644]
[1673577415231,3.60633272,1406.6,1406.4,1.06057235]
[1673577415444,6.10633272,1406.6,1406.4,1.06057235]
[1673577415653,6.20254751,1406.6,1406.4,1.06057235]
[1673577416806,13.31189751,1406.6,1406.4,1.06057235]
[1673577417567,10.81189751,1406.6,1406.4,1.06057235]
[1673577423318,3.70254751,1406.6,1406.4,2.65101644]
[1673577423534,3.60633272,1406.6,1406.4,2.65101644]
[1673577426452,3.60633272,1406.6,1406.5,0.97124205]
[1673577430671,3.60633272,1406.6,1406.5,0.87124205]
[1673577435407,19.57482479,1406.7,1406.5,0.87124205]
[1673577435557,12.46581479,1406.7,1406.5,16.50372025]
[1673577439273,12.46581479,1406.7,1406.5,18.09416434]
[1673577441127,0.09621479,1406.7,1406.5,18.09416434]
[1673577441334,10.27797961,1406.8,1406.5,25.20400434]
[1673577441588,13.88431233,1406.8,1406.5,25.20400434]
[1673577442204,12.82154751,1406.8,1406.6,1.06057235]
[1673577442397,12.82154751,1406.8,1406.6,8.16987235]
[1673577450934,3.70254751,1406.8,1406.6,10.69681878]
[1673577451156,0.09621479,1406.9,1406.7,2.58157235]
[1673577451498,0.08045604,1407.0,1406.8,15.21221742]
[1673577452005,0.08045604,1407.0,1406.8,16.27278977]
[1673577452216,0.08045604,1407.0,1406.8,18.92866016]
[1673577452621,0.08045604,1407.0,1406.8,4.71200016]
[1673577452836,0.08045604,1407.0,1406.8,11.82026016]
[1673577453012,0.08045604,1407.0,1406.8,10.75968781]
[1673577453223,0.08045604,1407.0,1406.8,17.86801781]
[1673577456525,0.07655329,1407.0,1406.9,1.78680178]
[1673577457320,0.07655329,1407.0,1406.9,16.00244178]
[1673577460998,0.07655329,1407.0,1406.9,1.78680178]
[1673577461208,0.07655329,1407.0,1406.8,2.72542781]
[1673577461416,2.57655329,1407.0,1406.8,2.65942781]
[1673577462311,2.57655329,1407.0,1406.8,0.00355742]
[1673577462522,6.18288601,1407.0,1406.8,0.00355742]
[1673577462732,3.60633272,1406.9,1406.8,0.00355742]
[1673577462896,17.82197272,1406.9,1406.8,0.00355742]
[1673577463103,25.25600751,1406.9,1406.8,0.00355742]
[1673577463359,27.75600751,1406.9,1406.8,0.00355742]
[1673577467360,0.09621479,1406.9,1406.8,0.99555742]
[1673577467514,8.69036808,1407.0,1406.8,0.99555742]
[1673577467724,12.2967008,1407.0,1406.8,0.99555742]
[1673577468144,3.7791008,1407.0,1406.8,0.99555742]
[1673577468387,3.68288601,1407.0,1406.8,3.3403724]
[1673577469043,3.68288601,1407.0,1406.8,10.4486724]
[1673577469994,0.07655329,1407.0,1406.8,24.6653324]
[1673577470209,0.07655329,1407.0,1406.8,27.23190475]
[1673577471164,0.07655329,1407.0,1406.8,26.1713324]
[1673577471322,0.07655329,1407.0,1406.9,2.61713324]
[1673577471745,0.07655329,1407.0,1406.9,9.72495324]
[1673577478407,0.07438471,1407.0,1406.9,9.72495324]
[1673577481306,0.07438471,1407.0,1406.9,7.10782]
[1673577482385,0.07438471,1407.0,1406.8,22.90030742]
[1673577482576,0.07438471,1407.0,1406.8,21.32830742]
[1673577485441,0.07438471,1407.0,1406.8,7.11167742]
[1673577485646,0.07438471,1407.0,1406.8,0.00355742]
[1673577485980,7.18171471,1407.0,1406.8,0.00355742]
[1673577486192,2.5,1406.9,1406.8,0.00355742]
[1673577486777,13.21415272,1406.9,1406.8,0.00355742]
[1673577486994,14.83136751,1406.9,1406.8,0.00355742]
[1673577488247,21.93918751,1406.9,1406.8,0.00355742]
[1673577491560,23.00195233,1406.9,1406.8,0.00355742]
[1673577492150,21.93918751,1406.9,1406.8,0.00355742]
[1673577497233,17.91818751,1406.9,1406.8,0.00355742]
[1673577497672,14.31185479,1406.9,1406.8,0.99555742]
[1673577497862,0.09621479,1406.9,1406.8,0.99555742]
[1673577498034,16.4233295,1407.0,1406.8,0.99555742]
[1673577498402,20.02966222,1407.0,1406.8,0.99555742]
[1673577498595,10.88426222,1407.0,1406.8,0.99555742]
[1673577500282,10.88426222,1407.0,1406.8,0.00355742]
[1673577500511,13.38426222,1407.0,1406.8,0.00355742]
[1673577500896,3.77693222,1407.0,1406.8,0.00355742]
[1673577501106,3.68071743,1407.0,1406.8,1.5317364]
[1673577504353,0.07438471,1407.0,1406.8,1.5317364]
[1673577504571,0.07438471,1407.0,1406.8,8.6399864]
[1673577505315,0.07438471,1407.0,1406.8,9.70055875]
[1673577505561,0.07438471,1407.0,1406.9,0.97005588]
[1673577507345,0.07438471,1407.0,1406.8,16.87471875]
[1673577507554,0.07438471,1407.0,1406.8,16.80871875]
[1673577508036,0.07438471,1407.0,1406.8,9.70046875]
[1673577508487,0.07438471,1407.0,1406.9,0.70506253]
[1673577509457,0.07438471,1407.0,1406.8,9.71646875]